[Event "Titled Tuesday Blitz July 4 Early 2023"]
[White "Goryachkina, Aleksandra"]
[Black "Oparin, Grigoriy"]
[WhiteFideId "4147103"]
[BlackFideId "24125890"]
[WhiteElo "2715"]
[BlackElo "2966"]
[Result "1-0"]
[Round "8"]
[TimeControl "180+2"]
[Date "2023.07.04"]
[WhiteClock "0:00:05"]
[BlackClock "0:00:36"]
[Board "25"]

1. e4 {[%clk 0:03:00]}  c5 {[%clk 0:02:59]} 2. Nf3 {[%clk 0:03:00]}  e6 {[%clk 0:02:59]} 3. c3 {[%clk 0:02:58]}  d5 {[%clk 0:02:55]} 4. exd5 {[%clk 0:02:58]}  Qxd5 {[%clk 0:02:56]} 5. d4 {[%clk 0:02:57]}  Nf6 {[%clk 0:02:56]} 6. Na3 {[%clk 0:02:51]}  a6 {[%clk 0:02:56]} 7. Nc4 {[%clk 0:02:50]}  Nbd7 {[%clk 0:02:56]} 8. a4 {[%clk 0:02:49]}  cxd4 {[%clk 0:02:48]} 9. Qxd4 {[%clk 0:02:49]}  Bc5 {[%clk 0:02:42]} 10. Qh4 {[%clk 0:02:38]}  Qe4+ {[%clk 0:02:42]} 11. Qxe4 {[%clk 0:02:37]}  Nxe4 {[%clk 0:02:43]} 12. Be3 {[%clk 0:02:36]}  Bxe3 {[%clk 0:02:42]} 13. fxe3 {[%clk 0:02:33]}  Ke7 {[%clk 0:02:42]} 14. Be2 {[%clk 0:02:24]}  Rd8 {[%clk 0:02:23]} 15. O-O {[%clk 0:02:23]}  f6 {[%clk 0:02:23]} 16. a5 {[%clk 0:02:15]}  Ndc5 {[%clk 0:02:08]} 17. Nb6 {[%clk 0:01:28]}  Rb8 {[%clk 0:02:07]} 18. Rad1 {[%clk 0:01:19]}  Rxd1 {[%clk 0:02:01]} 19. Rxd1 {[%clk 0:01:09]}  Nb3 {[%clk 0:02:01]} 20. Bd3 {[%clk 0:00:58]}  Nec5 {[%clk 0:01:54]} 21. Bxh7 {[%clk 0:00:51]}  Bd7 {[%clk 0:01:54]} 22. Bc2 {[%clk 0:00:44]}  Bc6 {[%clk 0:01:18]} 23. Nd4 {[%clk 0:00:42]}  Nxd4 {[%clk 0:01:19]} 24. exd4 {[%clk 0:00:34]}  Nd7 {[%clk 0:01:19]} 25. Nxd7 {[%clk 0:00:30]}  Kxd7 {[%clk 0:01:20]} 26. b4 {[%clk 0:00:23]}  Bd5 {[%clk 0:01:17]} 27. Re1 {[%clk 0:00:20]}  Rc8 {[%clk 0:01:16]} 28. Re3 {[%clk 0:00:21]}  g5 {[%clk 0:01:12]} 29. g4 {[%clk 0:00:19]}  Kd6 {[%clk 0:01:09]} 30. Kf2 {[%clk 0:00:18]}  f5 {[%clk 0:01:04]} 31. gxf5 {[%clk 0:00:13]}  exf5 {[%clk 0:01:05]} 32. Bxf5 {[%clk 0:00:12]}  Rc7 {[%clk 0:00:52]} 33. Kg3 {[%clk 0:00:11]}  Rf7 {[%clk 0:00:52]} 34. Kg4 {[%clk 0:00:10]}  Rg7 {[%clk 0:00:50]} 35. Bd3 {[%clk 0:00:08]}  Be6+ {[%clk 0:00:50]} 36. Kh5 {[%clk 0:00:08]}  g4 {[%clk 0:00:45]} 37. c4 {[%clk 0:00:07]}  Rg8 {[%clk 0:00:43]} 38. c5+ {[%clk 0:00:05]}  Kd7 {[%clk 0:00:39]} 39. Rxe6 {[%clk 0:00:05]}  g3 {[%clk 0:00:36]} 40. Rd6+ {[%clk 0:00:05]}  Kc7 {[%clk 0:00:36]} 41. hxg3 {[%clk 0:00:05]} 1-0


[Site "https://www.chess.com"]

[Event "Titled Tuesday Blitz July 4 Early 2023"]
[White "Grandelius, Nils"]
[Black "Quintiliano Pinto, Renato R."]
[WhiteFideId "1710400"]
[BlackFideId "2117568"]
[WhiteElo "2897"]
[BlackElo "2695"]
[Result "1/2-1/2"]
[Round "8"]
[TimeControl "180+2"]
[Date "2023.07.04"]
[WhiteClock "0:00:11"]
[BlackClock "0:00:14"]
[Board "29"]

1. Nf3 {[%clk 0:03:00]}  Nf6 {[%clk 0:02:58]} 2. g3 {[%clk 0:03:00]}  d5 {[%clk 0:02:57]} 3. Bg2 {[%clk 0:03:00]}  Bf5 {[%clk 0:02:57]} 4. O-O {[%clk 0:02:58]}  c6 {[%clk 0:02:57]} 5. c4 {[%clk 0:02:58]}  e6 {[%clk 0:02:57]} 6. cxd5 {[%clk 0:02:58]}  exd5 {[%clk 0:02:57]} 7. d3 {[%clk 0:02:55]}  Be7 {[%clk 0:02:54]} 8. Qb3 {[%clk 0:02:53]}  Qb6 {[%clk 0:02:53]} 9. Qc2 {[%clk 0:02:54]}  O-O {[%clk 0:02:50]} 10. Nc3 {[%clk 0:02:54]}  Nbd7 {[%clk 0:02:39]} 11. e4 {[%clk 0:02:52]}  dxe4 {[%clk 0:02:38]} 12. dxe4 {[%clk 0:02:53]}  Bg6 {[%clk 0:02:39]} 13. Be3 {[%clk 0:02:45]}  Qa6 {[%clk 0:02:00]} 14. Rfd1 {[%clk 0:02:34]}  Bc5 {[%clk 0:01:42]} 15. Bxc5 {[%clk 0:02:25]}  Nxc5 {[%clk 0:01:41]} 16. Ne5 {[%clk 0:02:25]}  Rfe8 {[%clk 0:01:31]} 17. Nxg6 {[%clk 0:02:15]}  hxg6 {[%clk 0:01:32]} 18. h3 {[%clk 0:02:04]}  Qc4 {[%clk 0:01:08]} 19. b3 {[%clk 0:01:58]}  Qe6 {[%clk 0:01:07]} 20. Rd4 {[%clk 0:01:53]}  Qe5 {[%clk 0:00:59]} 21. Rad1 {[%clk 0:01:51]}  Ne6 {[%clk 0:00:58]} 22. Rd6 {[%clk 0:01:46]}  Rad8 {[%clk 0:00:57]} 23. Rxd8 {[%clk 0:01:31]}  Rxd8 {[%clk 0:00:58]} 24. Rxd8+ {[%clk 0:01:31]}  Nxd8 {[%clk 0:00:58]} 25. Qd2 {[%clk 0:01:25]}  Ne6 {[%clk 0:00:58]} 26. f4 {[%clk 0:01:24]}  Qc5+ {[%clk 0:00:57]} 27. Kh2 {[%clk 0:01:24]}  Qd4 {[%clk 0:00:51]} 28. Qxd4 {[%clk 0:01:23]}  Nxd4 {[%clk 0:00:51]} 29. Kg1 {[%clk 0:01:18]}  Nd7 {[%clk 0:00:46]} 30. Kf2 {[%clk 0:01:15]}  f6 {[%clk 0:00:47]} 31. Ke3 {[%clk 0:01:14]}  Nc2+ {[%clk 0:00:42]} 32. Kd2 {[%clk 0:01:14]}  Nb4 {[%clk 0:00:40]} 33. Bf1 {[%clk 0:01:09]}  b5 {[%clk 0:00:39]} 34. a3 {[%clk 0:01:04]}  Na6 {[%clk 0:00:37]} 35. a4 {[%clk 0:01:05]}  Nac5 {[%clk 0:00:25]} 36. axb5 {[%clk 0:00:55]}  Nxb3+ {[%clk 0:00:25]} 37. Ke3 {[%clk 0:00:55]}  cxb5 {[%clk 0:00:24]} 38. Bxb5 {[%clk 0:00:55]}  Nb6 {[%clk 0:00:24]} 39. Nd5 {[%clk 0:00:40]}  Kf8 {[%clk 0:00:22]} 40. Nb4 {[%clk 0:00:33]}  a5 {[%clk 0:00:19]} 41. Nc2 {[%clk 0:00:22]}  Ke7 {[%clk 0:00:19]} 42. h4 {[%clk 0:00:20]}  Kd6 {[%clk 0:00:17]} 43. Be8 {[%clk 0:00:21]}  Kc5 {[%clk 0:00:11]} 44. Bxg6 {[%clk 0:00:20]}  Nc4+ {[%clk 0:00:11]} 45. Kd3 {[%clk 0:00:20]}  Nc1+ {[%clk 0:00:12]} 46. Kc3 {[%clk 0:00:17]}  Ne2+ {[%clk 0:00:11]} 47. Kb3 {[%clk 0:00:18]}  Nxg3 {[%clk 0:00:09]} 48. h5 {[%clk 0:00:13]}  Nd2+ {[%clk 0:00:10]} 49. Ka4 {[%clk 0:00:12]}  Ndxe4 {[%clk 0:00:10]} 50. Kxa5 {[%clk 0:00:12]}  Nd6 {[%clk 0:00:10]} 51. Ne3 {[%clk 0:00:12]}  Ne2 {[%clk 0:00:10]} 52. f5 {[%clk 0:00:07]}  Nc4+ {[%clk 0:00:11]} 53. Nxc4 {[%clk 0:00:07]}  Kxc4 {[%clk 0:00:12]} 54. Kb6 {[%clk 0:00:08]}  Kd4 {[%clk 0:00:10]} 55. Kc6 {[%clk 0:00:08]}  Ke5 {[%clk 0:00:10]} 56. Kd7 {[%clk 0:00:09]}  Ng3 {[%clk 0:00:11]} 57. Ke7 {[%clk 0:00:09]}  Nxf5+ {[%clk 0:00:11]} 58. Kf7 {[%clk 0:00:08]}  Ng3 {[%clk 0:00:12]} 59. Kxg7 {[%clk 0:00:08]}  Nxh5+ {[%clk 0:00:12]} 60. Bxh5 {[%clk 0:00:09]}  f5 {[%clk 0:00:13]} 61. Kg6 {[%clk 0:00:10]}  f4 {[%clk 0:00:14]} 62. Kg5 {[%clk 0:00:10]}  f3 {[%clk 0:00:14]} 63. Bxf3 {[%clk 0:00:11]} 1/2-1/2


[Site "https://www.chess.com"]

[Event "Titled Tuesday Blitz July 4 Early 2023"]
[White "Bacrot, Etienne"]
[Black "Amilal Munkhdalai"]
[WhiteFideId "605506"]
[BlackFideId "4903250"]
[WhiteElo "2856"]
[BlackElo "2693"]
[Result "0-1"]
[Round "8"]
[TimeControl "180+2"]
[Date "2023.07.04"]
[WhiteClock "0:00:00"]
[BlackClock "0:00:06"]
[Board "32"]

1. e4 {[%clk 0:02:59]}  c5 {[%clk 0:02:58]} 2. Nf3 {[%clk 0:02:59]}  Nc6 {[%clk 0:02:58]} 3. Bb5 {[%clk 0:02:59]}  e6 {[%clk 0:02:58]} 4. O-O {[%clk 0:02:58]}  Nge7 {[%clk 0:02:58]} 5. Re1 {[%clk 0:02:59]}  a6 {[%clk 0:02:58]} 6. Bf1 {[%clk 0:02:59]}  d5 {[%clk 0:02:58]} 7. exd5 {[%clk 0:02:59]}  Nxd5 {[%clk 0:02:59]} 8. d4 {[%clk 0:02:59]}  Nf6 {[%clk 0:02:59]} 9. Be3 {[%clk 0:02:59]}  cxd4 {[%clk 0:02:58]} 10. Nxd4 {[%clk 0:02:59]}  Bd7 {[%clk 0:02:53]} 11. c4 {[%clk 0:02:58]}  Bb4 {[%clk 0:02:51]} 12. Nc3 {[%clk 0:02:58]}  O-O {[%clk 0:02:49]} 13. Qb3 {[%clk 0:02:53]}  Qa5 {[%clk 0:02:36]} 14. h3 {[%clk 0:02:37]}  Rfd8 {[%clk 0:02:16]} 15. a3 {[%clk 0:02:25]}  Bxc3 {[%clk 0:02:15]} 16. bxc3 {[%clk 0:02:26]}  Nxd4 {[%clk 0:02:05]} 17. cxd4 {[%clk 0:02:22]}  Bc6 {[%clk 0:02:02]} 18. d5 {[%clk 0:02:22]}  exd5 {[%clk 0:01:33]} 19. Bb6 {[%clk 0:02:22]}  dxc4 {[%clk 0:01:34]} 20. Bxa5 {[%clk 0:01:54]}  cxb3 {[%clk 0:01:33]} 21. Bxd8 {[%clk 0:01:54]}  Rxd8 {[%clk 0:01:34]} 22. Rab1 {[%clk 0:01:51]}  Bd5 {[%clk 0:01:23]} 23. Red1 {[%clk 0:01:48]}  Rc8 {[%clk 0:01:19]} 24. Be2 {[%clk 0:01:44]}  Be6 {[%clk 0:01:16]} 25. Rd2 {[%clk 0:01:37]}  Ne4 {[%clk 0:01:02]} 26. Rd4 {[%clk 0:01:09]}  Nc3 {[%clk 0:01:00]} 27. Rb2 {[%clk 0:01:09]}  Nxe2+ {[%clk 0:00:49]} 28. Rxe2 {[%clk 0:01:10]}  h6 {[%clk 0:00:47]} 29. a4 {[%clk 0:00:54]}  a5 {[%clk 0:00:42]} 30. Rb2 {[%clk 0:00:45]}  Rc2 {[%clk 0:00:32]} 31. Rd2 {[%clk 0:00:39]}  Rxb2 {[%clk 0:00:19]} 32. Rxb2 {[%clk 0:00:39]}  b5 {[%clk 0:00:20]} 33. axb5 {[%clk 0:00:38]}  a4 {[%clk 0:00:20]} 34. b6 {[%clk 0:00:39]}  Bd5 {[%clk 0:00:19]} 35. Kf1 {[%clk 0:00:33]}  Kh7 {[%clk 0:00:19]} 36. Ke2 {[%clk 0:00:17]}  a3 {[%clk 0:00:18]} 37. Rxb3 {[%clk 0:00:18]}  Bxb3 {[%clk 0:00:18]} 38. b7 {[%clk 0:00:18]}  a2 {[%clk 0:00:18]} 39. b8=Q {[%clk 0:00:19]}  Bc4+ {[%clk 0:00:18]} 40. Ke3 {[%clk 0:00:18]}  a1=Q {[%clk 0:00:18]} 41. Qc7 {[%clk 0:00:18]}  Qc3+ {[%clk 0:00:18]} 42. Kf4 {[%clk 0:00:18]}  Qd4+ {[%clk 0:00:18]} 43. Kg3 {[%clk 0:00:18]}  Bd3 {[%clk 0:00:18]} 44. f3 {[%clk 0:00:16]}  Bg6 {[%clk 0:00:18]} 45. Kh2 {[%clk 0:00:16]}  f6 {[%clk 0:00:18]} 46. Qb7 {[%clk 0:00:15]}  Qe5+ {[%clk 0:00:18]} 47. Kg1 {[%clk 0:00:15]}  Qe3+ {[%clk 0:00:17]} 48. Kh2 {[%clk 0:00:15]}  Bd3 {[%clk 0:00:18]} 49. Qd7 {[%clk 0:00:12]}  Qe5+ {[%clk 0:00:17]} 50. Kg1 {[%clk 0:00:11]}  Qe3+ {[%clk 0:00:17]} 51. Kh2 {[%clk 0:00:12]}  h5 {[%clk 0:00:17]} 52. Qd8 {[%clk 0:00:10]}  h4 {[%clk 0:00:17]} 53. Qd7 {[%clk 0:00:08]}  Qf4+ {[%clk 0:00:12]} 54. Kg1 {[%clk 0:00:08]}  Bf5 {[%clk 0:00:12]} 55. Qe7 {[%clk 0:00:06]}  Qg3 {[%clk 0:00:08]} 56. Qc5 {[%clk 0:00:02]}  Qe1+ {[%clk 0:00:05]} 57. Kh2 {[%clk 0:00:00]}  Qe5+ {[%clk 0:00:06]} 0-1


[Site "https://www.chess.com"]

[Event "Titled Tuesday Blitz July 4 Early 2023"]
[White "Kantor, Gergely"]
[Black "Materia, Marco"]
[WhiteFideId "751499"]
[BlackFideId "45150451"]
[WhiteElo "2819"]
[BlackElo "2627"]
[Result "1/2-1/2"]
[Round "8"]
[TimeControl "180+2"]
[Date "2023.07.04"]
[WhiteClock "0:00:11"]
[BlackClock "0:00:53"]
[Board "34"]

1. Nf3 {[%clk 0:02:04]}  d5 {[%clk 0:02:59]} 2. g3 {[%clk 0:02:05]}  Nf6 {[%clk 0:03:00]} 3. Bg2 {[%clk 0:02:05]}  c5 {[%clk 0:02:59]} 4. O-O {[%clk 0:02:06]}  Nc6 {[%clk 0:02:59]} 5. b3 {[%clk 0:02:06]}  e5 {[%clk 0:02:59]} 6. Bb2 {[%clk 0:02:07]}  Bd6 {[%clk 0:02:58]} 7. d3 {[%clk 0:02:06]}  O-O {[%clk 0:02:58]} 8. Nbd2 {[%clk 0:02:07]}  Bg4 {[%clk 0:02:55]} 9. h3 {[%clk 0:02:07]}  Bh5 {[%clk 0:02:55]} 10. e4 {[%clk 0:02:06]}  d4 {[%clk 0:02:52]} 11. a4 {[%clk 0:02:06]}  Bc7 {[%clk 0:02:50]} 12. Qe1 {[%clk 0:02:05]}  a6 {[%clk 0:02:49]} 13. Nh4 {[%clk 0:02:05]}  Nd7 {[%clk 0:02:48]} 14. Nf5 {[%clk 0:02:03]}  f6 {[%clk 0:02:45]} 15. Bf3 {[%clk 0:01:51]}  Bxf3 {[%clk 0:02:44]} 16. Nxf3 {[%clk 0:01:51]}  b5 {[%clk 0:02:44]} 17. Qe2 {[%clk 0:01:51]}  Nb6 {[%clk 0:02:41]} 18. Ba3 {[%clk 0:01:39]}  Nb4 {[%clk 0:02:38]} 19. Bxb4 {[%clk 0:01:37]}  cxb4 {[%clk 0:02:38]} 20. axb5 {[%clk 0:01:35]}  axb5 {[%clk 0:02:38]} 21. h4 {[%clk 0:01:34]}  Ra3 {[%clk 0:02:34]} 22. h5 {[%clk 0:01:29]}  Qa8 {[%clk 0:02:31]} 23. Rac1 {[%clk 0:01:22]}  Qe8 {[%clk 0:02:24]} 24. N3h4 {[%clk 0:01:21]}  Rf7 {[%clk 0:01:55]} 25. Qg4 {[%clk 0:01:20]}  Rd7 {[%clk 0:01:53]} 26. Kg2 {[%clk 0:01:11]}  Nc8 {[%clk 0:01:46]} 27. Rh1 {[%clk 0:00:56]}  Nd6 {[%clk 0:01:44]} 28. Ng6 {[%clk 0:00:31]}  Nxf5 {[%clk 0:01:42]} 29. Qxf5 {[%clk 0:00:32]}  Ra6 {[%clk 0:01:35]} 30. Rh4 {[%clk 0:00:26]}  Qe6 {[%clk 0:01:33]} 31. Qf3 {[%clk 0:00:25]}  hxg6 {[%clk 0:01:30]} 32. hxg6 {[%clk 0:00:25]}  Kf8 {[%clk 0:01:31]} 33. Rh8+ {[%clk 0:00:26]}  Ke7 {[%clk 0:01:31]} 34. Rch1 {[%clk 0:00:24]}  Kd6 {[%clk 0:01:31]} 35. R1h7 {[%clk 0:00:22]}  Kc6 {[%clk 0:01:24]} 36. Rf8 {[%clk 0:00:22]}  Kb7 {[%clk 0:01:22]} 37. Rhh8 {[%clk 0:00:21]}  Ra2 {[%clk 0:01:20]} 38. Qe2 {[%clk 0:00:19]}  Qxb3 {[%clk 0:01:19]} 39. Qg4 {[%clk 0:00:17]}  Qxc2 {[%clk 0:01:17]} 40. Qxd7 {[%clk 0:00:17]}  Qxf2+ {[%clk 0:01:17]} 41. Kh3 {[%clk 0:00:17]}  Qf1+ {[%clk 0:01:13]} 42. Kg4 {[%clk 0:00:17]}  Qe2+ {[%clk 0:01:12]} 43. Kf5 {[%clk 0:00:17]}  Qf3+ {[%clk 0:01:12]} 44. Ke6 {[%clk 0:00:18]}  Qg4+ {[%clk 0:01:13]} 45. Ke7 {[%clk 0:00:17]}  Qxd7+ {[%clk 0:01:13]} 46. Kxd7 {[%clk 0:00:18]}  b3 {[%clk 0:01:13]} 47. Rc8 {[%clk 0:00:18]}  Rc2 {[%clk 0:01:12]} 48. Rh1 {[%clk 0:00:17]}  b2 {[%clk 0:01:12]} 49. Rb1 {[%clk 0:00:17]}  b4 {[%clk 0:01:10]} 50. Rg8 {[%clk 0:00:17]}  Bb6 {[%clk 0:01:06]} 51. Ke6 {[%clk 0:00:17]}  Rg2 {[%clk 0:00:57]} 52. Rxg7+ {[%clk 0:00:17]}  Kc6 {[%clk 0:00:57]} 53. Rg8 {[%clk 0:00:17]}  Kb5 {[%clk 0:00:56]} 54. g7 {[%clk 0:00:17]}  Rxg3 {[%clk 0:00:56]} 55. Kf7 {[%clk 0:00:17]}  b3 {[%clk 0:00:54]} 56. Rb8 {[%clk 0:00:17]}  Kb4 {[%clk 0:00:48]} 57. Rxb6+ {[%clk 0:00:16]}  Kc3 {[%clk 0:00:49]} 58. g8=Q {[%clk 0:00:16]}  Rxg8 {[%clk 0:00:48]} 59. Kxg8 {[%clk 0:00:17]}  Kc2 {[%clk 0:00:49]} 60. Rh1 {[%clk 0:00:17]}  b1=Q {[%clk 0:00:49]} 61. Rxb1 {[%clk 0:00:17]}  Kxb1 {[%clk 0:00:49]} 62. Rxb3+ {[%clk 0:00:18]}  Kc2 {[%clk 0:00:50]} 63. Ra3 {[%clk 0:00:18]}  Kb2 {[%clk 0:00:50]} 64. Ra6 {[%clk 0:00:17]}  Kc3 {[%clk 0:00:51]} 65. Ra3+ {[%clk 0:00:13]}  Kb2 {[%clk 0:00:51]} 66. Kf7 {[%clk 0:00:09]}  Kxa3 {[%clk 0:00:50]} 67. Kxf6 {[%clk 0:00:10]}  Kb3 {[%clk 0:00:51]} 68. Kxe5 {[%clk 0:00:11]}  Kc3 {[%clk 0:00:52]} 69. Kf4 {[%clk 0:00:08]}  Kxd3 {[%clk 0:00:52]} 70. e5 {[%clk 0:00:09]}  Kc2 {[%clk 0:00:52]} 71. e6 {[%clk 0:00:10]}  d3 {[%clk 0:00:52]} 72. e7 {[%clk 0:00:10]}  d2 {[%clk 0:00:53]} 73. e8=Q {[%clk 0:00:11]}  d1=Q {[%clk 0:00:53]} 74. Qe4+ {[%clk 0:00:11]}  Qd3 {[%clk 0:00:53]} 75. Qxd3+ {[%clk 0:00:11]}  Kxd3 {[%clk 0:00:53]} 1/2-1/2


[Site "https://www.chess.com"]

[Event "Titled Tuesday Blitz July 4 Early 2023"]
[White "Shimanov, Aleksandr"]
[Black "Radzhabov, Rodion"]
[WhiteFideId "4198603"]
[BlackFideId "884715"]
[WhiteElo "2903"]
[BlackElo "2666"]
[Result "1-0"]
[Round "8"]
[TimeControl "180+2"]
[Date "2023.07.04"]
[WhiteClock "0:00:18"]
[BlackClock "0:00:00"]
[Board "39"]

1. b3 {[%clk 0:02:50]}  Nf6 {[%clk 0:02:58]} 2. Bb2 {[%clk 0:02:49]}  d5 {[%clk 0:02:58]} 3. Nf3 {[%clk 0:02:49]}  e6 {[%clk 0:02:56]} 4. e3 {[%clk 0:02:46]}  Be7 {[%clk 0:02:56]} 5. g4 {[%clk 0:02:46]}  O-O {[%clk 0:02:55]} 6. g5 {[%clk 0:02:46]}  Ne8 {[%clk 0:02:50]} 7. h4 {[%clk 0:02:46]}  c5 {[%clk 0:02:47]} 8. c4 {[%clk 0:02:42]}  Nc6 {[%clk 0:02:41]} 9. d3 {[%clk 0:02:20]}  d4 {[%clk 0:02:32]} 10. Nbd2 {[%clk 0:02:19]}  e5 {[%clk 0:02:30]} 11. Qe2 {[%clk 0:02:16]}  Nd6 {[%clk 0:02:20]} 12. e4 {[%clk 0:02:14]}  b5 {[%clk 0:02:14]} 13. Bh3 {[%clk 0:01:56]}  bxc4 {[%clk 0:01:49]} 14. Nxc4 {[%clk 0:01:47]}  Nxc4 {[%clk 0:01:41]} 15. bxc4 {[%clk 0:01:48]}  Rb8 {[%clk 0:01:31]} 16. Bc1 {[%clk 0:01:46]}  f5 {[%clk 0:01:12]} 17. exf5 {[%clk 0:01:33]}  Bxf5 {[%clk 0:01:11]} 18. Bxf5 {[%clk 0:01:34]}  Rxf5 {[%clk 0:01:11]} 19. Nd2 {[%clk 0:01:34]}  Qd7 {[%clk 0:00:29]} 20. Ne4 {[%clk 0:01:32]}  Qe6 {[%clk 0:00:13]} 21. Kd1 {[%clk 0:00:52]}  Rbf8 {[%clk 0:00:12]} 22. Bd2 {[%clk 0:00:49]}  Rf3 {[%clk 0:00:12]} 23. Kc2 {[%clk 0:00:47]}  Bd8 {[%clk 0:00:11]} 24. Nxc5 {[%clk 0:00:42]}  Qd6 {[%clk 0:00:08]} 25. Ne4 {[%clk 0:00:42]}  Qa3 {[%clk 0:00:08]} 26. Rhb1 {[%clk 0:00:41]}  Ba5 {[%clk 0:00:06]} 27. Rb3 {[%clk 0:00:41]}  Qa4 {[%clk 0:00:06]} 28. Kb2 {[%clk 0:00:38]}  Bxd2 {[%clk 0:00:06]} 29. Qxd2 {[%clk 0:00:38]}  a5 {[%clk 0:00:05]} 30. a3 {[%clk 0:00:38]}  Rb8 {[%clk 0:00:02]} 31. Rxb8+ {[%clk 0:00:34]}  Nxb8 {[%clk 0:00:03]} 32. Rb1 {[%clk 0:00:31]}  Na6 {[%clk 0:00:01]} 33. Qc2 {[%clk 0:00:27]}  Qc6 {[%clk 0:00:01]} 34. Qe2 {[%clk 0:00:22]}  Rf8 {[%clk 0:00:02]} 35. Ka2 {[%clk 0:00:21]}  Nc5 {[%clk 0:00:02]} 36. Nxc5 {[%clk 0:00:21]}  Qxc5 {[%clk 0:00:03]} 37. Rb5 {[%clk 0:00:21]}  Qc6 {[%clk 0:00:04]} 38. Rxe5 {[%clk 0:00:21]}  Qg2 {[%clk 0:00:04]} 39. Re8 {[%clk 0:00:18]}  g6 {[%clk 0:00:00]} 40. Qe6+ {[%clk 0:00:18]} 1-0


[Site "https://www.chess.com"]

[Event "Titled Tuesday Blitz July 4 Early 2023"]
[White "Ahmad, Khagan"]
[Black "Zhigalko, Sergei"]
[WhiteFideId "13431552"]
[BlackFideId "13502956"]
[WhiteElo "2660"]
[BlackElo "2887"]
[Result "0-1"]
[Round "8"]
[TimeControl "180+2"]
[Date "2023.07.04"]
[WhiteClock "0:00:18"]
[BlackClock "0:00:50"]
[Board "40"]

1. e4 {[%clk 0:02:48]}  c5 {[%clk 0:03:00]} 2. Nf3 {[%clk 0:02:47]}  Nc6 {[%clk 0:03:00]} 3. d4 {[%clk 0:02:43]}  cxd4 {[%clk 0:03:01]} 4. Nxd4 {[%clk 0:02:44]}  Nf6 {[%clk 0:03:02]} 5. Nc3 {[%clk 0:02:41]}  e5 {[%clk 0:03:02]} 6. Ndb5 {[%clk 0:02:36]}  d6 {[%clk 0:03:02]} 7. Bg5 {[%clk 0:02:35]}  a6 {[%clk 0:03:01]} 8. Na3 {[%clk 0:02:35]}  b5 {[%clk 0:03:01]} 9. Nd5 {[%clk 0:02:34]}  Be7 {[%clk 0:03:01]} 10. Bxf6 {[%clk 0:02:34]}  Bxf6 {[%clk 0:03:01]} 11. c3 {[%clk 0:02:34]}  Bg5 {[%clk 0:03:01]} 12. Nc2 {[%clk 0:02:34]}  Ne7 {[%clk 0:03:02]} 13. Nce3 {[%clk 0:02:23]}  O-O {[%clk 0:02:58]} 14. a4 {[%clk 0:02:21]}  bxa4 {[%clk 0:02:52]} 15. Rxa4 {[%clk 0:02:18]}  a5 {[%clk 0:02:28]} 16. Bc4 {[%clk 0:02:13]}  Bd7 {[%clk 0:02:14]} 17. Ra2 {[%clk 0:02:08]}  Nxd5 {[%clk 0:02:10]} 18. Nxd5 {[%clk 0:02:05]}  Kh8 {[%clk 0:02:06]} 19. O-O {[%clk 0:02:03]}  f5 {[%clk 0:02:03]} 20. exf5 {[%clk 0:02:01]}  Bxf5 {[%clk 0:02:04]} 21. b4 {[%clk 0:01:39]}  axb4 {[%clk 0:01:53]} 22. cxb4 {[%clk 0:01:35]}  Rc8 {[%clk 0:01:36]} 23. Qb3 {[%clk 0:01:29]}  Be4 {[%clk 0:01:32]} 24. f3 {[%clk 0:01:28]}  Bxd5 {[%clk 0:01:17]} 25. Bxd5 {[%clk 0:01:29]}  Qb6+ {[%clk 0:01:18]} 26. Kh1 {[%clk 0:01:27]}  Be3 {[%clk 0:01:18]} 27. Be4 {[%clk 0:01:10]}  Bd4 {[%clk 0:01:15]} 28. Qd3 {[%clk 0:01:07]}  Rc3 {[%clk 0:01:14]} 29. Qb1 {[%clk 0:00:52]}  Qb5 {[%clk 0:01:04]} 30. Bxh7 {[%clk 0:00:47]}  Rb3 {[%clk 0:01:05]} 31. Qd1 {[%clk 0:00:38]}  Kxh7 {[%clk 0:01:01]} 32. Re1 {[%clk 0:00:30]}  Qd3 {[%clk 0:01:00]} 33. Rd2 {[%clk 0:00:29]}  Qc4 {[%clk 0:00:54]} 34. Re4 {[%clk 0:00:21]}  Qxb4 {[%clk 0:00:50]} 35. h3 {[%clk 0:00:18]}  Rb1 {[%clk 0:00:50]} 0-1


[Site "https://www.chess.com"]

[Event "Titled Tuesday Blitz July 4 Early 2023"]
[White "Fier, Alexandr"]
[Black "Ozdemir, Serhan Berat"]
[WhiteFideId "2107139"]
[BlackFideId "6374611"]
[WhiteElo "2782"]
[BlackElo "2626"]
[Result "0-1"]
[Round "8"]
[TimeControl "180+2"]
[Date "2023.07.04"]
[WhiteClock "0:02:31"]
[BlackClock "0:01:23"]
[Board "45"]

1. d4 {[%clk 0:03:00]}  Nf6 {[%clk 0:03:00]} 2. Bg5 {[%clk 0:03:01]}  g6 {[%clk 0:02:55]} 3. Bxf6 {[%clk 0:03:01]}  exf6 {[%clk 0:02:56]} 4. e3 {[%clk 0:03:01]}  d5 {[%clk 0:02:56]} 5. h4 {[%clk 0:03:01]}  h5 {[%clk 0:02:56]} 6. g3 {[%clk 0:03:02]}  c6 {[%clk 0:02:52]} 7. Bg2 {[%clk 0:03:02]}  Bd6 {[%clk 0:02:50]} 8. Nd2 {[%clk 0:03:02]}  Bg4 {[%clk 0:02:49]} 9. Ne2 {[%clk 0:03:02]}  Nd7 {[%clk 0:02:49]} 10. c4 {[%clk 0:03:02]}  dxc4 {[%clk 0:02:50]} 11. Nxc4 {[%clk 0:03:02]}  Bb4+ {[%clk 0:02:50]} 12. Kf1 {[%clk 0:03:02]}  Nb6 {[%clk 0:02:10]} 13. Rc1 {[%clk 0:02:58]}  Nxc4 {[%clk 0:02:08]} 14. Rxc4 {[%clk 0:02:57]}  Bd6 {[%clk 0:02:08]} 15. Qd2 {[%clk 0:02:53]}  O-O {[%clk 0:02:06]} 16. Nf4 {[%clk 0:02:53]}  Re8 {[%clk 0:02:02]} 17. Kg1 {[%clk 0:02:52]}  Qe7 {[%clk 0:01:53]} 18. Kh2 {[%clk 0:02:51]}  Rad8 {[%clk 0:01:49]} 19. Qa5 {[%clk 0:02:50]}  g5 {[%clk 0:01:47]} 20. hxg5 {[%clk 0:02:47]}  fxg5 {[%clk 0:01:48]} 21. Nh3 {[%clk 0:02:47]}  Be6 {[%clk 0:01:38]} 22. Rcc1 {[%clk 0:02:45]}  f6 {[%clk 0:01:39]} 23. Kg1 {[%clk 0:02:43]}  Bf7 {[%clk 0:01:32]} 24. a3 {[%clk 0:02:31]}  Bxg3 {[%clk 0:01:32]} 25. fxg3 {[%clk 0:02:30]}  Qxe3+ {[%clk 0:01:31]} 26. Kh2 {[%clk 0:02:30]}  h4 {[%clk 0:01:26]} 27. gxh4 {[%clk 0:02:31]}  g4 {[%clk 0:01:25]} 28. Rc3 {[%clk 0:02:31]}  g3# {[%clk 0:01:23]} 0-1


[Site "https://www.chess.com"]